[Event "NJSK 2026 Jeugd C"]
[Site "Helmond, Netherlands"]
[Date "2026.04.30"]
[Round "8.14"]
[White "Ngangbam, Chingthang"]
[Black "Cubuk, Armin"]
[Result "1-0"]
[TimeControl "90min/40moves + 30sec/move"]
[WhiteTitle "-"]
[BlackTitle "-"]
[WhiteFideId "1086510"]
[BlackFideId "40105423"]
[WhiteElo "1937"]
[BlackElo "1881"]

1. e4 {[%clk 01:30:56]} {[%emt 00:00:03]} e5 {[%clk 01:30:53]} {[%emt
00:00:08]} 2. Nf3 {[%clk 01:31:21]} {[%emt 00:00:05]} Nc6 {[%clk 01:31:21]}
{[%emt 00:00:03]} 3. Bc4 {[%clk 01:31:45]} {[%emt 00:00:06]} Nf6 {[%clk
01:31:47]} {[%emt 00:00:06]} 4. d3 {[%clk 01:32:05]} {[%emt 00:00:09]} Bc5
{[%clk 01:32:03]} {[%emt 00:00:13]} 5. c3 {[%clk 01:32:26]} {[%emt 00:00:08]}
d6 {[%clk 01:31:41]} {[%emt 00:00:52]} 6. O-O {[%clk 01:32:49]} {[%emt
00:00:08]} O-O {[%clk 01:30:39]} {[%emt 00:01:32]} 7. Nbd2 {[%clk 01:32:23]}
{[%emt 00:00:55]} h6 {[%clk 01:30:19]} {[%emt 00:00:51]} 8. a4 {[%clk
01:30:52]} {[%emt 00:02:01]} a5 {[%clk 01:29:44]} {[%emt 00:01:05]} 9. Re1
{[%clk 01:30:32]} {[%emt 00:00:50]} Re8 {[%clk 01:29:18]} {[%emt 00:00:57]} 10.
Qb3 {[%clk 01:27:01]} {[%emt 00:04:01]} Qe7 {[%clk 01:22:39]} {[%emt 00:07:08]}
11. h3 {[%clk 01:26:39]} {[%emt 00:00:52]} Bb6 {[%clk 01:18:17]} {[%emt
00:04:49]} 12. Nf1 {[%clk 01:25:45]} {[%emt 00:01:25]} Be6 {[%clk 01:13:33]}
{[%emt 00:05:15]} 13. Be3 {[%clk 01:16:44]} {[%emt 00:09:30]} Bxc4 {[%clk
00:56:23]} {[%emt 00:17:39]} 14. dxc4 {[%clk 01:09:45]} {[%emt 00:07:31]} Ra6
{[%clk 00:47:12]} {[%emt 00:09:41]} 15. Qa3 {[%clk 00:52:33]} {[%emt 00:17:42]}
Nb8 {[%clk 00:32:49]} {[%emt 00:14:52]} 16. b4 {[%clk 00:41:59]} {[%emt
00:11:04]} Nbd7 {[%clk 00:28:50]} {[%emt 00:04:29]} 17. Qb3 {[%clk 00:17:57]}
{[%emt 00:24:32]} Qe6 {[%clk 00:22:46]} {[%emt 00:06:34]} 18. N3d2 {[%clk
00:16:34]} {[%emt 00:01:53]} Bxe3 {[%clk 00:18:03]} {[%emt 00:05:13]} 19. Nxe3
{[%clk 00:16:40]} {[%emt 00:00:23]} Rb6 {[%clk 00:17:47]} {[%emt 00:00:47]} 20.
Nd5 {[%clk 00:15:53]} {[%emt 00:01:17]} Nxd5 {[%clk 00:17:47]} {[%emt
00:00:30]} 21. cxd5 {[%clk 00:16:15]} {[%emt 00:00:08]} Qg6 {[%clk 00:17:56]}
{[%emt 00:00:22]} 22. Nc4 {[%clk 00:16:17]} {[%emt 00:00:28]} Ra6 {[%clk
00:16:42]} {[%emt 00:01:44]} 23. Nxa5 {[%clk 00:16:25]} {[%emt 00:00:22]} Nf6
{[%clk 00:15:45]} {[%emt 00:01:27]} 24. Qc4 {[%clk 00:15:15]} {[%emt 00:01:39]}
Nh5 {[%clk 00:14:16]} {[%emt 00:01:59]} 25. Re3 {[%clk 00:14:35]} {[%emt
00:01:10]} Rf8 {[%clk 00:13:32]} {[%emt 00:01:15]} 26. Nxb7 {[%clk 00:14:08]}
{[%emt 00:00:57]} Ra7 {[%clk 00:13:24]} {[%emt 00:00:37]} 27. Na5 {[%clk
00:14:22]} {[%emt 00:00:16]} Raa8 {[%clk 00:12:21]} {[%emt 00:01:34]} 28. Nc6
{[%clk 00:14:38]} {[%emt 00:00:13]} Rae8 {[%clk 00:12:43]} {[%emt 00:00:08]} 29.
a5 {[%clk 00:13:29]} {[%emt 00:01:39]} f5 {[%clk 00:12:59]} {[%emt 00:00:15]}
30. a6 {[%clk 00:13:28]} {[%emt 00:00:31]} Nf4 {[%clk 00:11:38]} {[%emt
00:01:51]} 31. Rg3 {[%clk 00:13:13]} {[%emt 00:00:44]} Qh5 {[%clk 00:12:02]}
{[%emt 00:00:07]} 32. Ra2 {[%clk 00:11:33]} {[%emt 00:02:10]} fxe4 {[%clk
00:11:34]} {[%emt 00:00:57]} 33. Qxe4 {[%clk 00:11:35]} {[%emt 00:00:28]} Qd1+
{[%clk 00:11:36]} {[%emt 00:00:28]} 34. Kh2 {[%clk 00:11:58]} {[%emt 00:00:07]}
Qxd5 {[%clk 00:03:11]} {[%emt 00:08:55]} 35. Qxd5+ {[%clk 00:12:09]} {[%emt
00:00:19]} Nxd5 {[%clk 00:03:40]} {[%emt 00:00:01]} 36. c4 {[%clk 00:11:59]}
{[%emt 00:00:41]} Nb6 {[%clk 00:03:53]} {[%emt 00:00:17]} 37. Rc3 {[%clk
00:10:36]} {[%emt 00:01:52]} Ra8 {[%clk 00:03:20]} {[%emt 00:01:03]} 38. b5
{[%clk 00:09:39]} {[%emt 00:01:27]} Rf4 {[%clk 00:03:01]} {[%emt 00:00:49]} 39.
Ne7+ {[%clk 00:08:50]} {[%emt 00:01:19]} Kf7 {[%clk 00:02:27]} {[%emt
00:01:04]} 40. Nd5 {[%clk 00:09:14]} {[%emt 00:00:06]} Rxc4 {[%clk 00:01:39]}
{[%emt 00:01:19]} 41. Nxb6 {[%clk 00:09:31]} {[%emt 00:00:13]} Rxc3 {[%clk
00:01:16]} {[%emt 00:00:52]} 42. Nxa8 {[%clk 00:09:50]} {[%emt 00:00:10]} d5
{[%clk 00:01:09]} {[%emt 00:00:38]} 43. a7 {[%clk 00:10:04]} {[%emt 00:00:16]}
d4 {[%clk 00:01:35]} {[%emt 00:00:04]} 44. Nxc7 {[%clk 00:10:23]} {[%emt
00:00:11]} d3 {[%clk 00:01:58]} {[%emt 00:00:08]} 45. a8=Q {[%clk 00:10:46]}
{[%emt 00:00:07]} Rxc7 {[%clk 00:01:55]} {[%emt 00:00:33]} 46. Qd5+ {[%clk
00:10:50]} {[%emt 00:00:25]} Kf6 {[%clk 00:02:19]} {[%emt 00:00:06]} 47. Qd6+
{[%clk 00:10:57]} {[%emt 00:00:23]} 1-0

[Event "NJSK 2026 Jeugd C"]
[Site "Helmond, Netherlands"]
[Date "2026.04.30"]
[Round "8.15"]
[White "Bajnath, Dhanesh"]
[Black "Nguyen, Paul"]
[Result "0-1"]
[TimeControl "90min/40moves + 30sec/move"]
[WhiteTitle "-"]
[BlackTitle "-"]
[WhiteFideId "40104842"]
[BlackFideId "1095072"]
[WhiteElo "1889"]
[BlackElo "1845"]

1. e4 {[%clk 01:31:00]} e5 {[%clk 01:30:53]} {[%emt 00:00:07]} 2. Nf3 {[%clk
01:31:28]} {[%emt 00:00:01]} Nc6 {[%clk 01:31:18]} {[%emt 00:00:06]} 3. Bc4
{[%clk 01:31:57]} {[%emt 00:00:01]} Bc5 {[%clk 01:31:40]} {[%emt 00:00:07]} 4.
d3 {[%clk 01:32:22]} {[%emt 00:00:06]} d6 {[%clk 01:32:05]} {[%emt 00:00:06]} 5.
c3 {[%clk 01:32:47]} {[%emt 00:00:07]} Nf6 {[%clk 01:32:24]} {[%emt 00:00:08]}
6. Nbd2 {[%clk 01:33:08]} {[%emt 00:00:09]} a6 {[%clk 01:32:45]} {[%emt
00:00:09]} 7. a4 {[%clk 01:33:27]} {[%emt 00:00:11]} Be6 {[%clk 01:32:41]}
{[%emt 00:00:33]} 8. O-O {[%clk 01:33:45]} {[%emt 00:00:12]} O-O {[%clk
01:33:04]} {[%emt 00:00:07]} 9. h3 {[%clk 01:33:51]} {[%emt 00:00:25]} h6
{[%clk 01:33:25]} {[%emt 00:00:09]} 10. Re1 {[%clk 01:34:20]} {[%emt 00:00:01]}
Re8 {[%clk 01:33:10]} {[%emt 00:00:45]} 11. Bxe6 {[%clk 01:34:17]} {[%emt
00:00:33]} fxe6 {[%clk 01:33:32]} {[%emt 00:00:08]} 12. Nc4 {[%clk 01:34:09]}
{[%emt 00:00:38]} Qd7 {[%clk 01:33:18]} {[%emt 00:00:42]} 13. Be3 {[%clk
01:32:46]} {[%emt 00:01:54]} Bxe3 {[%clk 01:31:21]} {[%emt 00:02:27]} 14. Nxe3
{[%clk 01:33:14]} {[%emt 00:00:02]} d5 {[%clk 01:31:20]} {[%emt 00:00:31]} 15.
Qc2 {[%clk 01:14:53]} {[%emt 00:18:49]} b6 {[%clk 01:18:54]} {[%emt 00:12:57]}
16. Rad1 {[%clk 01:10:07]} {[%emt 00:05:15]} a5 {[%clk 01:13:10]} {[%emt
00:06:15]} 17. Qb1 {[%clk 00:52:38]} {[%emt 00:17:58]} Qd6 {[%clk 01:08:46]}
{[%emt 00:04:54]} 18. d4 {[%clk 00:44:25]} {[%emt 00:08:44]} Nxe4 {[%clk
01:01:38]} {[%emt 00:07:37]} 19. Nc4 {[%clk 00:31:18]} {[%emt 00:13:37]} Qd7
{[%clk 00:56:53]} {[%emt 00:04:59]} 20. dxe5 {[%clk 00:22:29]} {[%emt
00:09:36]} Nc5 {[%clk 00:53:01]} {[%emt 00:04:21]} 21. b3 {[%clk 00:20:15]}
{[%emt 00:02:45]} Qe7 {[%clk 00:48:50]} {[%emt 00:04:39]} 22. Ne3 {[%clk
00:20:19]} {[%emt 00:00:27]} Rad8 {[%clk 00:46:42]} {[%emt 00:02:38]} 23. Nc2
{[%clk 00:17:57]} {[%emt 00:02:53]} Rf8 {[%clk 00:44:36]} {[%emt 00:02:34]} 24.
Ncd4 {[%clk 00:16:49]} {[%emt 00:01:40]} Nxd4 {[%clk 00:44:43]} {[%emt
00:00:22]} 25. Rxd4 {[%clk 00:14:15]} {[%emt 00:03:05]} Ne4 {[%clk 00:44:14]}
{[%emt 00:00:59]} 26. Qc2 {[%clk 00:13:00]} {[%emt 00:01:46]} Qc5 {[%clk
00:40:35]} {[%emt 00:04:08]} 27. Re3 {[%clk 00:12:01]} {[%emt 00:01:29]} c6
{[%clk 00:40:44]} {[%emt 00:00:21]} 28. Rdd3 {[%clk 00:09:38]} {[%emt
00:02:53]} b5 {[%clk 00:41:02]} {[%emt 00:00:12]} 29. axb5 {[%clk 00:09:01]}
{[%emt 00:01:07]} cxb5 {[%clk 00:41:26]} {[%emt 00:00:05]} 30. Re2 {[%clk
00:09:19]} {[%emt 00:00:13]} Rc8 {[%clk 00:41:18]} {[%emt 00:00:38]} 31. Ree3
{[%clk 00:06:48]} {[%emt 00:03:00]} Rc7 {[%emt 00:03:06]} 32. Qa2 {[%clk
00:04:36]} b4 {[%clk 00:37:46]} {[%emt 00:04:08]} 33. cxb4 {[%clk 00:03:49]}
{[%emt 00:01:16]} axb4 {[%clk 00:38:09]} {[%emt 00:00:08]} 34. Rd4 {[%clk
00:02:26]} {[%emt 00:01:53]} Rxf3 {[%clk 00:37:38]} {[%emt 00:01:01]} 35. Rdxe4
{[%clk 00:02:54]} {[%emt 00:00:02]} dxe4 {[%clk 00:37:48]} {[%emt 00:00:19]} 36.
gxf3 {[%clk 00:03:10]} {[%emt 00:00:14]} exf3 {[%clk 00:37:24]} {[%emt
00:00:54]} 37. Qa8+ {[%clk 00:02:07]} {[%emt 00:01:34]} Rc8 {[%clk 00:37:26]}
{[%emt 00:00:28]} 38. Qxf3 {[%clk 00:02:24]} {[%emt 00:00:13]} Rf8 {[%clk
00:37:49]} {[%emt 00:00:06]} 39. Qg4 {[%clk 00:00:40]} {[%emt 00:02:15]} Rf5
{[%clk 00:37:59]} {[%emt 00:00:20]} 40. Qe2 {[%clk 00:00:32]} {[%emt 00:00:38]}
Qd5 {[%clk 00:37:41]} {[%emt 00:00:48]} 41. f3 {[%clk 00:00:41]} {[%emt
00:00:20]} Rf4 {[%clk 00:37:06]} {[%emt 00:01:06]} 42. Re4 {[%clk 00:00:35]}
{[%emt 00:00:36]} Rf5 {[%clk 00:34:06]} {[%emt 00:03:29]} 43. Kf1 {[%clk
00:01:04]} {[%emt 00:00:02]} Qxb3 {[%clk 00:33:48]} {[%emt 00:00:48]} 44. Re3
{[%clk 00:01:33]} {[%emt 00:00:01]} Qd5 {[%clk 00:33:39]} {[%emt 00:00:37]} 45.
Kf2 {[%clk 00:01:18]} {[%emt 00:00:47]} Qd4 {[%emt 00:01:30]} 46. Qb5 {[%emt
00:00:02]} Kh7 {[%clk 00:32:24]} {[%emt 00:01:42]} 47. Ke2 {[%clk 00:00:39]}
{[%emt 00:00:40]} Rh5 {[%clk 00:31:54]} {[%emt 00:01:00]} 48. Re4 {[%clk
00:00:43]} {[%emt 00:00:26]} Qb2+ {[%clk 00:32:14]} {[%emt 00:00:10]} 49. Ke3
{[%clk 00:00:45]} {[%emt 00:00:28]} Rxh3 {[%clk 00:32:22]} {[%emt 00:00:22]} 50.
Qxb4 {[%clk 00:00:36]} {[%emt 00:00:40]} Qc1+ {[%clk 00:32:28]} {[%emt
00:00:24]} 51. Ke2 {[%clk 00:00:32]} {[%emt 00:00:33]} Rh2+ {[%clk 00:32:50]}
{[%emt 00:00:07]} 52. Kd3 {[%clk 00:00:41]} {[%emt 00:00:22]} Rb2 {[%clk
00:32:28]} {[%emt 00:00:52]} 53. Qe1 {[%clk 00:00:39]} {[%emt 00:00:32]} Rb3+
{[%clk 00:29:57]} {[%emt 00:02:58]} 54. Kd4 {[%clk 00:00:34]} {[%emt 00:00:38]}
Qc6 {[%clk 00:30:10]} {[%emt 00:00:17]} 55. Qa5 {[%clk 00:00:36]} {[%emt
00:00:29]} Qd7+ {[%clk 00:30:05]} {[%emt 00:00:34]} 56. Kc4 {[%clk 00:01:01]}
{[%emt 00:00:06]} Rb1 {[%clk 00:30:13]} {[%emt 00:00:20]} 57. Re3 {[%clk
00:01:01]} {[%emt 00:00:30]} Rc1+ {[%clk 00:30:29]} {[%emt 00:00:14]} 58. Kb4
{[%clk 00:00:44]} {[%emt 00:00:48]} Qd4+ {[%clk 00:30:52]} {[%emt 00:00:07]}
0-1

[Event "NJSK 2026 Jeugd C"]
[Site "Helmond, Netherlands"]
[Date "2026.04.30"]
[Round "8.17"]
[White "Mendelsohn, Saffran"]
[Black "Brorens, Victor"]
[Result "1-0"]
[TimeControl "90min/40moves + 30sec/move"]
[WhiteTitle "-"]
[BlackTitle "-"]
[WhiteFideId "40108996"]
[BlackFideId "1095307"]
[WhiteElo "1767"]
[BlackElo "1911"]

1. e4 {[%clk 01:30:59]} e5 {[%clk 01:30:59]} {[%emt 00:00:02]} 2. Nf3 {[%clk
01:31:16]} {[%emt 00:00:12]} Nc6 {[%clk 01:31:27]} {[%emt 00:00:02]} 3. Bc4
{[%clk 01:31:35]} {[%emt 00:00:13]} Nf6 {[%clk 01:31:47]} {[%emt 00:00:11]} 4.
d3 {[%clk 01:31:59]} {[%emt 00:00:04]} Bc5 {[%clk 01:32:06]} {[%emt 00:00:11]}
5. c3 {[%clk 01:32:20]} {[%emt 00:00:09]} h6 {[%clk 01:32:19]} {[%emt
00:00:17]} 6. Nbd2 {[%clk 01:32:21]} {[%emt 00:00:29]} d6 {[%clk 01:32:13]}
{[%emt 00:00:36]} 7. O-O {[%clk 01:32:23]} {[%emt 00:00:26]} Bg4 {[%clk
01:32:34]} {[%emt 00:00:10]} 8. Re1 {[%clk 01:32:19]} {[%emt 00:00:34]} O-O
{[%clk 01:32:38]} {[%emt 00:00:26]} 9. h3 {[%clk 01:32:37]} {[%emt 00:00:13]}
Bh5 {[%clk 01:32:16]} {[%emt 00:00:51]} 10. Nf1 {[%clk 01:32:10]} {[%emt
00:00:57]} Na5 {[%clk 01:31:19]} {[%emt 00:01:28]} 11. Bb5 {[%clk 01:31:51]}
{[%emt 00:00:48]} c6 {[%clk 01:30:34]} {[%emt 00:01:15]} 12. Ba4 {[%clk
01:32:13]} {[%emt 00:00:08]} b5 {[%clk 01:30:54]} {[%emt 00:00:10]} 13. Bc2
{[%clk 01:32:38]} {[%emt 00:00:05]} Nb7 {[%clk 01:31:06]} {[%emt 00:00:18]} 14.
Ng3 {[%clk 01:30:46]} {[%emt 00:02:21]} Bg6 {[%clk 01:31:21]} {[%emt 00:00:17]}
15. Nh4 {[%clk 01:19:55]} {[%emt 00:11:20]} Bh7 {[%clk 01:31:34]} {[%emt
00:00:17]} 16. Ngf5 {[%clk 01:14:50]} {[%emt 00:05:34]} Qd7 {[%clk 01:25:42]}
{[%emt 00:06:22]} 17. Qf3 {[%clk 01:11:14]} {[%emt 00:04:04]} Kh8 {[%clk
01:24:51]} {[%emt 00:01:23]} 18. Nxh6 {[%clk 01:10:02]} {[%emt 00:01:42]} Qe6
{[%clk 01:19:08]} {[%emt 00:06:13]} 19. N6f5 {[%clk 00:56:42]} {[%emt
00:13:50]} Rae8 {[%clk 01:11:13]} {[%emt 00:08:25]} 20. g4 {[%clk 00:50:27]}
{[%emt 00:06:45]} a5 {[%clk 01:02:32]} {[%emt 00:09:11]} 21. Qg3 {[%clk
00:44:51]} {[%emt 00:06:06]} Bb6 {[%clk 00:55:47]} {[%emt 00:07:16]} 22. Nf3
{[%clk 00:38:10]} {[%emt 00:07:11]} Ng8 {[%clk 00:49:58]} {[%emt 00:06:18]} 23.
Bb3 {[%clk 00:35:41]} {[%emt 00:03:00]} Qg6 {[%clk 00:46:07]} {[%emt 00:04:21]}
24. N5h4 {[%clk 00:34:33]} {[%emt 00:01:38]} 1-0

[Event "NJSK 2026 Jeugd C"]
[Site "Helmond, Netherlands"]
[Date "2026.05.01"]
[Round "9.1"]
[White "Zhou, Yanyang"]
[Black "Teianu, Sabin"]
[Result "1/2-1/2"]
[TimeControl "90min/40moves + 30sec/move"]
[WhiteTitle "-"]
[BlackTitle "-"]
[WhiteFideId "40109739"]
[BlackFideId "1095846"]
[WhiteElo "1860"]
[BlackElo "2131"]

1. e4 {[%clk 01:30:58]} {[%emt 00:00:02]} e6 {[%clk 01:30:52]} {[%emt
00:00:08]} 2. d4 {[%clk 01:31:24]} {[%emt 00:00:03]} d5 {[%clk 01:31:17]}
{[%emt 00:00:05]} 3. e5 {[%clk 01:31:51]} {[%emt 00:00:03]} c5 {[%clk
01:31:44]} {[%emt 00:00:03]} 4. c3 {[%clk 01:32:17]} {[%emt 00:00:04]} Nc6
{[%clk 01:32:09]} {[%emt 00:00:05]} 5. Nf3 {[%clk 01:32:41]} {[%emt 00:00:06]}
Qb6 {[%clk 01:32:32]} {[%emt 00:00:07]} 6. a3 {[%clk 01:33:07]} {[%emt
00:00:04]} c4 {[%clk 01:32:59]} {[%emt 00:00:03]} 7. Nbd2 {[%clk 01:33:28]}
{[%emt 00:00:09]} Na5 {[%clk 01:33:22]} {[%emt 00:00:06]} 8. Rb1 {[%clk
01:33:53]} {[%emt 00:00:04]} Bd7 {[%clk 01:33:48]} {[%emt 00:00:04]} 9. h4
{[%clk 01:34:19]} {[%emt 00:00:04]} Ne7 {[%clk 01:32:42]} {[%emt 00:01:36]} 10.
h5 {[%clk 01:34:45]} {[%emt 00:00:04]} h6 {[%clk 01:33:06]} {[%emt 00:00:06]}
11. Be2 {[%clk 01:35:07]} {[%emt 00:00:08]} Qc7 {[%clk 01:30:38]} {[%emt
00:02:58]} 12. Nf1 {[%clk 01:35:23]} {[%emt 00:00:14]} O-O-O {[%clk 01:30:29]}
{[%emt 00:00:39]} 13. Bf4 {[%clk 01:35:00]} {[%emt 00:00:53]} Kb8 {[%clk
01:30:50]} {[%emt 00:00:09]} 14. Bg3 {[%emt 00:06:37]} Nf5 {[%clk 01:25:03]}
{[%emt 00:00:02]} 15. Bh2 {[%clk 01:31:03]} {[%emt 00:04:35]} Ne7 {[%clk
01:24:32]} {[%emt 00:01:02]} 16. Bg3 {[%clk 01:29:12]} {[%emt 00:02:20]} Nf5
{[%clk 01:24:55]} {[%emt 00:00:07]} 17. Bh2 {[%clk 01:28:43]} {[%emt 00:00:59]}
Ne7 {[%clk 01:25:15]} {[%emt 00:00:11]} 18. Ne3 {[%clk 01:25:38]} {[%emt
00:03:34]} Nc8 {[%clk 01:22:23]} {[%emt 00:03:22]} 19. Nd2 {[%clk 01:25:44]}
{[%emt 00:00:24]} Nb6 {[%clk 01:22:23]} {[%emt 00:00:31]} 20. Qc1 {[%clk
01:23:16]} {[%emt 00:02:58]} Ba4 {[%clk 01:21:49]} {[%emt 00:01:03]} 21. O-O
{[%clk 01:22:28]} {[%emt 00:01:17]} Be7 {[%clk 01:21:10]} {[%emt 00:01:10]} 22.
Bd1 {[%clk 01:21:29]} {[%emt 00:01:29]} Bxd1 {[%clk 01:19:08]} {[%emt
00:02:33]} 23. Qxd1 {[%clk 01:21:21]} {[%emt 00:00:37]} Qc6 {[%clk 01:17:08]}
{[%emt 00:02:30]} 24. Qe2 {[%clk 01:20:31]} {[%emt 00:01:20]} Qa4 {[%clk
01:14:24]} {[%emt 00:03:15]} 25. f4 {[%clk 01:17:31]} {[%emt 00:03:29]} Nb3
{[%clk 00:50:33]} {[%emt 00:24:21]} 26. Nxb3 {[%clk 01:15:58]} {[%emt
00:02:03]} Qxb3 {[%clk 00:50:50]} {[%emt 00:00:13]} 27. f5 {[%clk 01:15:06]}
{[%emt 00:01:22]} Bg5 {[%clk 00:34:52]} {[%emt 00:16:27]} 28. fxe6 {[%clk
01:10:16]} {[%emt 00:05:21]} Bxe3+ {[%clk 00:33:34]} {[%emt 00:01:48]} 29. Qxe3
{[%clk 01:10:29]} {[%emt 00:00:18]} fxe6 {[%clk 00:33:58]} {[%emt 00:00:06]} 30.
Qh3 {[%clk 00:58:19]} {[%emt 00:12:39]} Rde8 {[%clk 00:29:53]} {[%emt
00:04:35]} 31. Qg4 {[%clk 00:55:37]} {[%emt 00:03:12]} Qc2 {[%clk 00:18:44]}
{[%emt 00:11:40]} 32. Rfc1 {[%clk 00:48:26]} {[%emt 00:07:43]} Qd3 {[%clk
00:13:29]} {[%emt 00:05:44]} 33. Rd1 {[%clk 00:45:26]} {[%emt 00:03:30]} Qe3+
{[%clk 00:12:22]} {[%emt 00:01:38]} 34. Kh1 {[%clk 00:45:35]} {[%emt 00:00:19]}
Qg5 {[%clk 00:11:35]} {[%emt 00:01:18]} 35. Qxg5 {[%clk 00:45:27]} {[%emt
00:00:38]} hxg5 {[%clk 00:11:59]} {[%emt 00:00:06]} 36. g4 {[%clk 00:45:50]}
{[%emt 00:00:07]} g6 {[%clk 00:11:55]} {[%emt 00:00:34]} 37. hxg6 {[%clk
00:45:50]} {[%emt 00:00:30]} Rh4 {[%clk 00:11:34]} {[%emt 00:00:51]} 38. Rf1
{[%clk 00:44:18]} {[%emt 00:02:02]} Rg8 {[%clk 00:03:20]} {[%emt 00:08:44]} 39.
Rf6 {[%clk 00:43:37]} {[%emt 00:01:11]} Rgh8 {[%clk 00:03:15]} {[%emt
00:00:35]} 40. g7 {[%clk 00:40:01]} {[%emt 00:04:06]} Rxh2+ {[%clk 00:03:38]}
{[%emt 00:00:07]} 41. Kg1 {[%clk 00:40:28]} {[%emt 00:00:02]} Rh1+ {[%clk
00:04:01]} {[%emt 00:00:08]} 42. Kf2 {[%clk 00:40:48]} {[%emt 00:00:08]} R1h2+
{[%clk 00:04:22]} {[%emt 00:00:10]} 43. Ke3 {[%clk 00:41:04]} {[%emt 00:00:15]}
R2h3+ {[%clk 00:04:44]} {[%emt 00:00:09]} 44. Ke2 {[%clk 00:40:15]} {[%emt
00:01:19]} Rh2+ {[%clk 00:05:08]} {[%emt 00:00:05]} 45. Ke3 {[%clk 00:40:05]}
{[%emt 00:00:14]} 1/2-1/2

[Event "NJSK 2026 Jeugd C"]
[Site "Helmond, Netherlands"]
[Date "2026.05.01"]
[Round "9.2"]
[White "Lalkota, Sai Pranav Tejas"]
[Black "Guillaumond, Matthieu"]
[Result "0-1"]
[TimeControl "90min/40moves + 30sec/move"]
[WhiteTitle "-"]
[BlackTitle "-"]
[WhiteFideId "1087690"]
[BlackFideId "1097091"]
[WhiteElo "1830"]
[BlackElo "2104"]

1. c4 {[%clk 01:30:59]} {[%emt 16:21:44]} c5 {[%clk 01:30:59]} 2. Nc3 {[%clk
01:31:23]} {[%emt 00:00:05]} Nc6 {[%clk 01:31:26]} {[%emt 00:00:04]} 3. g3
{[%clk 01:31:49]} {[%emt 00:00:04]} g6 {[%clk 01:31:53]} {[%emt 00:00:03]} 4.
Bg2 {[%clk 01:32:13]} {[%emt 00:00:06]} Bg7 {[%clk 01:32:20]} {[%emt 00:00:03]}
5. e3 {[%clk 01:32:22]} {[%emt 00:00:21]} e5 {[%clk 01:32:36]} {[%emt
00:00:14]} 6. Nge2 {[%clk 01:32:35]} {[%emt 00:00:17]} Nge7 {[%clk 01:32:17]}
{[%emt 00:00:49]} 7. O-O {[%clk 01:32:39]} {[%emt 00:00:26]} O-O {[%clk
01:32:33]} {[%emt 00:00:14]} 8. f4 {[%clk 01:32:33]} {[%emt 00:00:35]} d6
{[%clk 01:31:51]} {[%emt 00:01:13]} 9. e4 {[%clk 01:32:01]} {[%emt 00:01:02]}
exf4 {[%clk 01:29:17]} {[%emt 00:03:03]} 10. Nxf4 {[%clk 01:29:57]} {[%emt
00:02:33]} Nd4 {[%clk 01:27:52]} {[%emt 00:01:56]} 11. d3 {[%clk 01:29:53]}
{[%emt 00:00:33]} Nec6 {[%clk 01:27:26]} {[%emt 00:00:56]} 12. Nfd5 {[%clk
01:29:51]} {[%emt 00:00:33]} a6 {[%clk 01:18:08]} {[%emt 00:09:49]} 13. Bf4
{[%clk 01:26:28]} {[%emt 00:03:52]} Be6 {[%clk 01:13:02]} {[%emt 00:05:36]} 14.
Qd2 {[%clk 01:21:10]} {[%emt 00:05:48]} b5 {[%clk 01:02:32]} {[%emt 00:10:59]}
15. Bg5 {[%clk 01:19:56]} {[%emt 00:01:45]} f6 {[%clk 01:03:01]} {[%emt
00:00:01]} 16. Be3 {[%clk 01:19:41]} {[%emt 00:00:44]} Rb8 {[%clk 01:03:07]}
{[%emt 00:00:25]} 17. Rac1 {[%clk 01:15:32]} {[%emt 00:04:39]} Qd7 {[%clk
00:57:07]} {[%emt 00:06:30]} 18. Rf2 {[%clk 01:12:33]} {[%emt 00:03:28]} f5
{[%clk 00:55:10]} {[%emt 00:02:27]} 19. b3 {[%clk 01:11:18]} {[%emt 00:01:45]}
b4 {[%clk 00:49:29]} {[%emt 00:06:12]} 20. Ne2 {[%clk 01:08:50]} {[%emt
00:02:57]} Nxe2+ {[%clk 00:49:20]} {[%emt 00:00:40]} 21. Qxe2 {[%clk 01:09:10]}
{[%emt 00:00:09]} Bxd5 {[%clk 00:49:44]} {[%emt 00:00:06]} 22. cxd5 {[%clk
01:09:08]} {[%emt 00:00:32]} Nd4 {[%clk 00:49:12]} {[%emt 00:01:02]} 23. Qd2
{[%clk 01:09:30]} {[%emt 00:00:07]} a5 {[%clk 00:48:04]} {[%emt 00:01:39]} 24.
Kh1 {[%clk 01:09:41]} {[%emt 00:00:19]} a4 {[%clk 00:42:40]} {[%emt 00:05:55]}
25. Bxd4 {[%clk 01:09:37]} {[%emt 00:00:33]} Bxd4 {[%clk 00:41:41]} {[%emt
00:01:29]} 26. Rff1 {[%clk 01:09:42]} {[%emt 00:00:25]} axb3 {[%clk 00:37:53]}
{[%emt 00:04:19]} 27. axb3 {[%clk 01:10:05]} {[%emt 00:00:06]} Ra8 {[%clk
00:37:32]} {[%emt 00:00:51]} 28. Bh3 {[%clk 01:10:06]} {[%emt 00:00:29]} Qb7
{[%clk 00:31:34]} {[%emt 00:06:28]} 29. Qh6 {[%clk 01:09:15]} {[%emt 00:01:21]}
Ra2 {[%clk 00:28:24]} {[%emt 00:03:40]} 30. Bg2 {[%clk 01:08:37]} {[%emt
00:01:09]} Qg7 {[%clk 00:26:05]} {[%emt 00:02:48]} 31. Qxg7+ {[%clk 01:08:03]}
{[%emt 00:01:04]} Kxg7 {[%clk 00:26:27]} {[%emt 00:00:08]} 32. Rb1 {[%clk
01:07:14]} {[%emt 00:01:19]} Be5 {[%clk 00:15:50]} {[%emt 00:11:07]} 33. Bf3
{[%clk 01:02:44]} {[%emt 00:05:00]} fxe4 {[%clk 00:13:45]} {[%emt 00:02:34]} 34.
dxe4 {[%clk 01:02:33]} {[%emt 00:00:42]} Rfa8 {[%clk 00:12:50]} {[%emt
00:01:25]} 35. Rfd1 {[%clk 00:57:16]} {[%emt 00:05:49]} R8a3 {[%clk 00:12:25]}
{[%emt 00:00:54]} 36. Kg1 {[%clk 00:56:21]} {[%emt 00:01:25]} c4 {[%clk
00:10:56]} {[%emt 00:02:00]} 37. Rf1 {[%clk 00:53:02]} {[%emt 00:03:48]} Bd4+
{[%clk 00:10:20]} {[%emt 00:01:06]} 38. Kh1 {[%clk 00:53:25]} {[%emt 00:00:07]}
c3 {[%clk 00:10:39]} {[%emt 00:00:12]} 39. e5 {[%clk 00:52:34]} {[%emt
00:01:21]} c2 {[%clk 00:09:07]} {[%emt 00:02:01]} 40. Rbc1 {[%clk 00:52:56]}
{[%emt 00:00:07]} Be3 {[%clk 00:09:35]} {[%emt 00:00:03]} 41. exd6 {[%clk
00:52:36]} {[%emt 00:00:51]} Bxc1 {[%clk 00:09:54]} {[%emt 00:00:11]} 42. Rxc1
{[%clk 00:52:57]} {[%emt 00:00:08]} Ra1 {[%clk 00:10:18]} {[%emt 00:00:06]} 0-1